bitfinex-derivatives/quotes_SOLF0:USTF0_20250731
["timestamp","ask_amount","ask_price","bid_price","bid_amount"]
[1754005666033,3.19,172.21,172.14,5.44882921]
[1754005666229,3.19,172.19,172.12,5.44882921]
[1754005666430,3.19,172.19,172.14,5.8097]
[1754005666637,3.19,172.19,172.1,5.44882921]
[1754005666834,3.19,172.17,172.1,5.44882921]
[1754005667040,3.19,172.15,172.03,152.32]
[1754005667238,3.19,172.15,172.08,5.44882921]
[1754005667638,3.19,172.17,172.08,5.44882921]
[1754005667837,3.19,172.15,172.06,5.44882921]
[1754005668036,3.19,172.13,172.06,5.44882921]
[1754005668236,3.19,172.13,172.04,5.44882921]
[1754005668836,5.44882921,172.16,172.09,5.8114]
[1754005669043,3.19,172.1,172.09,5.8114]
[1754005670244,3.19,172.1,172.08,5.8117]
[1754005670443,5.8104,172.12,172.08,5.8117]
[1754005670444,3.19,172.09,172.08,5.8117]
[1754005671244,3.19,172.15,172.08,5.44882921]
[1754005672042,3.19,172.19,172.1,5.44882921]
[1754005672246,5.8093,172.16,172.12,5.8104]
[1754005672444,3.19,172.13,172.12,5.8104]
[1754005675146,3.19,172.15,172.1,5.44882921]
[1754005675347,3.19,172.13,172.1,5.44882921]
[1754005675739,3.19,172.13,172.12,5.8102]
[1754005676350,3.19,172.16,172.1,5.44882921]
[1754005676551,3.19,172.16,172.12,5.44882921]
[1754005677245,3.19,172.16,172.15,5.8094]
[1754005677546,3.19,172.24,172.14,5.44882921]
[1754005677748,4.07104456,172.23,172.14,5.44882921]
[1754005678048,3.19,172.2,172.17,5.8086]
[1754005678552,3.05,172.2,172.16,5.44882921]
[1754005678744,3.05,172.19,172.16,5.44882921]
[1754005678941,3.05,172.19,172.18,5.8084]
[1754005679151,8.49882921,172.28,172.18,5.44882921]
[1754005679449,3.05,172.26,172.18,5.44882921]
[1754005679851,3.05,172.27,172.18,5.44882921]
[1754005680350,5.44882921,172.28,172.18,5.44882921]
[1754005680551,3.05,172.23,172.18,5.44882921]
[1754005680750,3.05,172.22,172.18,5.44882921]
[1754005680948,3.05,172.24,172.2,5.44882921]
[1754005681144,3.05,172.26,172.22,5.44882921]
[1754005681352,5.44882921,172.3,172.21,5.807]
[1754005681539,3.05,172.25,172.15,116.68882921]
[1754005681743,4.0646228,172.29,172.15,111.24]
[1754005681744,3.05,172.23,172.15,111.24]
[1754005681944,3.05,172.22,172.19,5.808]
[1754005682149,3.05,172.22,172.15,116.68882921]
[1754005682345,3.05,172.22,172.2,5.8077]
[1754005682650,3.05,172.21,172.2,5.8077]
[1754005682949,3.05,172.28,172.22,5.8068]
[1754005683548,3.05,172.25,172.21,5.44882921]
[1754005683945,3.05,172.27,172.26,5.8057]
[1754005684157,3.05,172.27,172.23,5.44882921]
[1754005684447,3.05,172.26,172.23,5.44882921]
[1754005684644,390.64,172.31,172.24,5.8064]
[1754005684950,3.05,172.3,172.23,5.44882921]
[1754005685449,5.805,172.28,172.24,5.8061]
[1754005685646,3.05,172.26,172.24,5.8061]
[1754005685854,3.05,172.27,172.24,5.8061]
[1754005686048,3.05,172.27,172.23,5.44882921]
[1754005686254,3.05,172.25,172.2,5.44882921]
[1754005686552,3.05,172.25,172.19,5.44882921]
[1754005687346,3.05,172.23,172.19,5.44882921]
[1754005687547,5.44882921,172.29,172.19,5.44882921]
[1754005687753,3.05,172.28,172.2,5.8076]
[1754005688448,3.05,172.24,172.19,5.44882921]
[1754005688642,5.8062,172.25,172.19,5.44882921]
[1754005688643,3.05,172.22,172.19,5.44882921]
[1754005689447,3.05,172.23,172.19,5.44882921]
[1754005689644,3.05,172.23,172.15,5.44882921]
[1754005689844,3.05,172.23,172.17,5.44882921]
[1754005690056,3.05,172.23,172.19,5.8078]
[1754005690250,5.8064,172.24,172.17,5.44882921]
[1754005690444,3.05,172.21,172.17,5.44882921]
[1754005691149,5.44882921,172.28,172.17,5.44882921]
[1754005691354,3.05,172.18,172.17,5.44882921]
[1754005691566,3.05,172.2,172.17,5.44882921]
[1754005691948,5.44882921,172.26,172.17,5.44882921]
[1754005692145,5.8069,172.23,172.18,5.8082]
[1754005692349,390.64,172.31,172.17,5.44882921]
[1754005692551,390.64,172.31,172.19,5.44882921]
[1754005692552,5.44882921,172.29,172.19,5.44882921]
[1754005692746,3.05,172.24,172.11,11.6212]
[1754005692956,5.44882921,172.23,172.09,111.14]
[1754005693251,3.05,172.2,172.13,5.44882921]
[1754005693554,506.54568429,172.31,172.17,5.44882921]
[1754005693555,3.05,172.24,172.17,5.44882921]
[1754005693754,5.8069,172.23,172.19,5.8079]
[1754005693954,3.05,172.22,172.19,5.8079]
[1754005694559,8.8571,172.22,172.18,5.8082]
[1754005694865,501.78,172.31,172.13,5.44882921]
[1754005694866,3.05,172.21,172.13,5.44882921]
[1754005695055,3.05,172.21,172.18,5.8082]
[1754005695251,3.05,172.21,172.13,5.44882921]
[1754005695656,3.05,172.19,172.13,5.44882921]
[1754005696366,3.05,172.19,172.11,5.44882921]
[1754005696766,5.8084,172.18,172.14,5.8095]
[1754005696960,3.05,172.17,172.14,5.8095]
[1754005697365,3.05,172.17,172.15,5.8093]
[1754005697666,5.8081,172.19,172.06,122.7446]
[1754005697667,3.05,172.18,172.13,3.67619887]
[1754005698068,3.05,172.18,172.15,5.8091]
[1754005698370,3.05,172.18,172.13,3.67619887]
[1754005698770,3.05,172.18,172.15,5.8091]
[1754005699566,3.05,172.17,172.16,5.8089]
[1754005700269,5.44514119,172.24,172.18,5.8083]
[1754005700270,3.05,172.19,172.18,5.8083]
[1754005701168,5.8067,172.23,172.19,5.808]
[1754005701364,3.05,172.22,172.16,5.44514119]
[1754005701962,3.05,172.22,172.2,5.8075]
[1754005702561,3.05,172.22,172.16,5.44514119]
[1754005703978,3.05,172.22,172.18,5.44514119]
[1754005704165,3.05,172.22,172.21,5.8074]
[1754005705971,3.05,172.22,172.2,5.8076]
[1754005706363,5.8064,172.24,172.11,52.6209]
[1754005706364,3.05,172.23,172.16,5.44514119]
[1754005706869,3.05,172.19,172.1,5.44514119]
[1754005707070,3.05,172.19,172.15,5.8094]
[1754005707272,8.8583,172.19,172.15,5.8094]
[1754005707473,3.05,172.18,172.15,5.8094]
[1754005707875,3.05,172.18,172.14,5.44514119]
[1754005708376,3.05,172.18,172.17,5.8087]
[1754005708577,5.807,172.23,172.14,5.44514119]
[1754005708775,5.807,172.23,172.1,5.44514119]
[1754005708976,3.03,172.21,172.15,5.44514119]
[1754005709176,3.03,172.21,172.13,5.44514119]
[1754005709367,3.03,172.21,172.15,5.44514119]
[1754005709568,3.03,172.26,172.17,5.44514119]
[1754005709769,3.03,172.24,172.17,5.44514119]
[1754005710479,8.8366,172.24,172.2,5.8076]
[1754005710668,8.8366,172.24,172.17,5.44514119]
[1754005710669,3.03,172.23,172.17,5.44514119]
[1754005711374,3.03,172.22,172.2,5.8077]
[1754005712078,3.03,172.26,172.17,5.44514119]
[1754005712279,3.03,172.26,172.19,5.44514119]
[1754005712481,3.03,172.24,172.19,5.44514119]
[1754005712678,3.03,172.24,172.21,5.8072]
[1754005713282,3.03,172.23,172.16,5.44514119]
[1754005713773,4.76568429,172.3,172.18,5.44514119]
[1754005713981,5.44514119,172.29,172.18,5.44514119]
[1754005714180,4.06131833,172.28,172.18,5.44514119]
[1754005714381,3.03,172.25,172.22,5.8069]
[1754005715082,3.03,172.25,172.23,5.8067]
[1754005717278,3.03,172.25,172.24,5.8064]
[1754005717481,3.03,172.25,172.18,5.44514119]
[1754005718282,3.03,172.25,172.23,5.8065]
[1754005718685,3.03,172.25,172.18,5.44514119]
[1754005718974,3.03,172.25,172.13,52.62]
[1754005718975,5.8051,172.28,172.24,5.8064]
[1754005719171,4.76568429,172.35,172.26,5.44514119]
[1754005719370,3.03,172.33,172.26,5.44514119]
[1754005719768,3.03,172.33,172.31,5.8037]
[1754005720181,5.8028,172.35,172.2,5.44514119]
[1754005720182,3.03,172.37,172.3,5.44514119]
[1754005720477,110.96,172.39,172.34,5.44514119]
[1754005720678,3.03,172.4,172.34,5.44514119]
[1754005720881,8.831,172.4,172.36,5.8022]
[1754005721183,3.03,172.39,172.36,5.8022]
[1754005721677,3.03,172.39,172.34,5.44514119]
[1754005722382,5.44514119,172.43,172.3,5.44514119]
[1754005722383,3.03,172.38,172.3,5.44514119]
[1754005722777,3.03,172.38,172.33,5.803]
[1754005722778,5.8021,172.37,172.33,5.803]
[1754005722979,3.03,172.38,172.3,5.44514119]
[1754005723377,5.8022,172.37,172.32,5.8035]
[1754005723581,3.03,172.4,172.32,5.44514119]
[1754005723777,3.03,172.4,172.34,5.44514119]
[1754005724080,3.03,172.39,172.34,5.44514119]
[1754005724586,3.03,172.39,172.36,5.8022]
[1754005725376,5.801,172.41,172.37,5.8019]
[1754005725580,3.03,172.41,172.36,5.44514119]
[1754005726279,110.94,172.44,172.3,5.44514119]
[1754005726280,3.03,172.4,172.38,5.44514119]
[1754005726682,3.03,172.4,172.39,5.8011]
[1754005728285,5.7993,172.46,172.38,5.44514119]
[1754005728482,3.03,172.44,172.38,5.44514119]
[1754005730688,3.03,172.44,172.43,5.8]
[1754005732084,3.03,172.49,172.42,5.44514119]
[1754005732579,5.7971,172.52,172.48,5.7983]
[1754005732780,3.03,172.49,172.48,5.7983]
[1754005733188,3.03,172.49,172.47,5.7986]
[1754005733589,3.03,172.49,172.42,5.44514119]
[1754005733889,3.03,172.49,172.47,5.7985]
[1754005734085,3.03,172.53,172.44,5.44514119]
[1754005734291,3.03,172.52,172.44,5.44514119]
[1754005734881,5.797,172.52,172.47,5.7984]
[1754005735081,3.03,172.51,172.44,5.44514119]
[1754005735491,3.03,172.51,172.47,5.7984]
[1754005735689,3.03,172.51,172.44,5.44514119]
[1754005735990,3.03,172.51,172.47,5.7983]
[1754005736592,8.8274,172.51,172.47,5.7983]
[1754005736887,5.44514119,172.53,172.48,5.7981]
[1754005737090,8.8272,172.52,172.48,5.7981]
[1754005737292,3.03,172.51,172.48,5.7981]
[1754005737587,3.03,172.51,172.42,5.44514119]
[1754005737789,10.21082548,172.6,172.42,5.44514119]
[1754005737790,3.03,172.5,172.42,5.44514119]
[1754005738089,3.03,172.5,172.44,5.44514119]
[1754005738290,3.03,172.5,172.49,5.798]
[1754005740094,3.03,172.5,172.44,5.44514119]
[1754005740285,3.03,172.5,172.42,5.44514119]
[1754005740597,3.03,172.5,172.4,5.44514119]
[1754005740890,8.8278,172.5,172.42,5.44514119]
[1754005741091,3.11,172.49,172.42,5.44514119]
[1754005741292,3.11,172.49,172.47,5.7984]
[1754005741691,3.11,172.49,172.42,5.44514119]
[1754005741987,3.11,172.54,172.46,5.44514119]
[1754005742189,3.11,172.53,172.46,5.44514119]
[1754005742389,3.11,172.52,172.51,5.7971]
[1754005742896,3.11,172.52,172.5,5.7975]
[1754005743195,3.11,172.56,172.48,5.44514119]
[1754005743395,3.11,172.56,172.5,5.7975]
[1754005743594,3.11,172.56,172.48,5.44514119]
[1754005743996,3.11,172.56,172.51,5.7971]
[1754005744193,3.11,172.56,172.48,5.44514119]
[1754005744388,5.7962,172.55,172.48,5.44514119]
[1754005744592,3.11,172.54,172.48,5.44514119]
[1754005744996,3.11,172.53,172.49,5.7977]
[1754005745299,3.11,172.53,172.47,5.44514119]
[1754005745693,5.7972,172.52,172.48,5.7981]
[1754005745996,3.11,172.51,172.48,5.7981]
[1754005746188,5.7972,172.52,172.48,5.798]
[1754005746388,3.11,172.49,172.48,5.798]
[1754005747097,3.11,172.5,172.47,11.24364119]
[1754005747297,3.11,172.5,172.43,5.44514119]
[1754005747898,5.7983,172.49,172.43,5.44514119]
[1754005748197,3.11,172.49,172.39,5.44514119]
[1754005748500,3.11,172.44,172.43,5.7998]
[1754005748895,3.11,172.44,172.37,5.44514119]
[1754005749198,3.11,172.44,172.32,11.6069]
[1754005749199,3.11,172.44,172.35,5.44514119]
[1754005749400,3.11,172.4,172.37,5.8018]
[1754005749600,3.11,172.49,172.34,5.44514119]
[1754005749797,3.11,172.44,172.34,5.44514119]
[1754005750199,3.11,172.43,172.34,5.44514119]
[1754005750591,5.8006,172.42,172.38,5.8014]
[1754005750795,3.11,172.43,172.34,5.44514119]
[1754005751197,5.8008,172.41,172.37,5.8017]
[1754005751403,3.11,172.4,172.34,5.44514119]
[1754005752203,3.11,172.4,172.39,5.8013]
[1754005752602,3.11,172.42,172.37,5.44514119]
[1754005752797,3.11,172.42,172.4,5.8008]
[1754005752998,3.11,172.46,172.37,5.44514119]
[1754005753397,110.62,172.47,172.39,5.8013]
[1754005753398,5.8003,172.43,172.39,5.8013]
[1754005753705,3.11,172.42,172.37,5.44514119]
[1754005753898,3.11,172.42,172.39,5.8012]
[1754005754298,5.44514119,172.46,172.37,5.44514119]
[1754005754299,3.11,172.4,172.37,5.44514119]
[1754005754498,3.11,172.4,172.39,5.8013]
[1754005754706,3.11,172.4,172.37,5.44514119]
[1754005754707,5.7998,172.44,172.37,5.44514119]
[1754005754904,3.11,172.41,172.37,5.44514119]
[1754005755202,3.11,172.4,172.37,5.44514119]
[1754005756206,3.11,172.4,172.39,5.8013]
[1754005758906,3.11,172.39,172.37,11.24704119]
[1754005759101,3.11,172.39,172.37,5.44514119]
[1754005759302,3.11,172.39,172.38,5.8017]
[1754005759506,3.11,172.39,172.37,5.44514119]
[1754005759911,3.11,172.39,172.37,11.24684119]
[1754005760308,3.11,172.38,172.37,11.24684119]
[1754005760699,3.11,172.38,172.37,5.8017]
[1754005761103,3.66572917,172.44,172.38,5.8015]
[1754005761303,3.11,172.43,172.38,5.8015]
[1754005761609,3.11,172.43,172.39,5.8013]
[1754005761811,3.11,172.46,172.4,3.66572917]
[1754005762403,5.7996,172.45,172.4,3.66572917]
[1754005762602,3.11,172.44,172.41,5.8006]
[1754005763106,3.11,172.48,172.4,3.66572917]
[1754005763309,3.11,172.45,172.42,3.66572917]
[1754005763509,3.11,172.48,172.42,3.66572917]
[1754005763811,3.11,172.46,172.45,5.7993]
[1754005764409,3.11,172.46,172.42,3.66572917]
[1754005764613,3.11,172.46,172.4,3.66572917]
[1754005765112,4.05798341,172.45,172.4,3.66572917]
[1754005765307,4.05798341,172.44,172.4,9.46662917]
[1754005765511,3.11,172.42,172.4,9.46662917]
[1754005765712,3.11,172.43,172.38,3.66572917]
[1754005766108,3.11,172.43,172.36,3.66572917]
[1754005766511,4.06073345,172.42,172.36,3.66572917]
[1754005766710,3.11,172.41,172.36,3.66572917]
[1754005766914,3.11,172.41,172.35,5.43074646]
[1754005767509,3.11,172.43,172.37,5.43074646]
[1754005767715,3.11,172.42,172.37,5.43074646]
[1754005767914,3.11,172.46,172.37,5.43074646]
[1754005768117,3.11,172.44,172.37,5.43074646]
[1754005768314,7.09270859,172.43,172.37,5.43074646]
[1754005768515,3.03,172.43,172.37,5.43074646]
[1754005768917,3.03,172.43,172.4,5.8008]
[1754005769216,3.03,172.42,172.4,5.8008]
[1754005770417,5.7994,172.45,172.39,5.43074646]
[1754005770418,8.8294,172.45,172.39,5.43074646]
[1754005770612,4.06510195,172.44,172.39,5.43074646]
[1754005770808,3.03,172.42,172.4,5.801]
[1754005771019,3.03,172.42,172.31,52.6075]
[1754005771317,3.03,172.42,172.38,5.43074646]
[1754005771512,3.03,172.42,172.39,5.8013]
[1754005771717,3.03,172.4,172.38,5.43074646]
[1754005771915,3.03,172.44,172.34,5.43074646]
[1754005772219,3.03,172.41,172.3,110.8]
[1754005772419,3.03,172.41,172.34,5.43074646]
[1754005772716,3.03,172.45,172.38,5.43074646]
[1754005772918,3.03,172.45,172.4,5.43074646]
[1754005773117,3.03,172.43,172.4,5.43074646]
[1754005773315,3.03,172.43,172.41,5.8005]
[1754005773518,4.80588208,172.49,172.4,5.43074646]
[1754005773519,3.03,172.41,172.4,5.43074646]
[1754005774519,3.03,172.41,172.38,5.43074646]
[1754005774819,3.03,172.39,172.38,5.43074646]
[1754005775323,10.23662854,172.48,172.39,5.8012]
[1754005775620,3.03,172.4,172.39,5.8012]
[1754005776212,3.03,172.44,172.38,5.43074646]
[1754005777918,3.03,172.42,172.35,5.43074646]
[1754005778119,3.03,172.41,172.3,157.23074646]
[1754005778314,3.03,172.46,172.39,5.43074646]
[1754005778518,3.03,172.45,172.39,5.43074646]
[1754005779019,5.7995,172.45,172.4,5.8009]
[1754005779228,3.03,172.44,172.39,5.43074646]
[1754005779421,8.46074646,172.42,172.3,41.0]
[1754005779630,8.46074646,172.42,172.27,21.26911443]
[1754005779631,3.03,172.38,172.35,5.8025]
[1754005780428,3.03,172.37,172.36,5.8022]
[1754005781028,3.03,172.38,172.34,5.43074646]
[1754005781326,3.03,172.38,172.37,5.8019]
[1754005782131,3.03,172.45,172.36,5.43074646]
[1754005782330,4.06287575,172.44,172.38,5.43074646]
[1754005782528,3.03,172.43,172.38,5.43074646]
[1754005782733,3.03,172.41,172.39,5.801]
[1754005783732,3.03,172.42,172.38,5.43074646]
[1754005784132,3.03,172.41,172.39,5.801]
[1754005787234,3.03,172.41,172.4,5.801]
[1754005787528,3.03,172.45,172.4,5.43074646]
[1754005787729,3.03,172.48,172.41,5.8005]
[1754005787929,4.06628035,172.47,172.4,5.43074646]
[1754005788128,4.80588208,172.49,172.4,5.43074646]
[1754005788129,3.03,172.45,172.4,5.43074646]
[1754005788327,3.03,172.43,172.4,5.43074646]
[1754005788532,3.03,172.49,172.42,5.43074646]
[1754005788730,4.06822606,172.48,172.42,5.43074646]
[1754005789033,3.03,172.47,172.44,3.66243118]
[1754005789430,3.03,172.46,172.44,3.66243118]
[1754005789631,3.03,172.45,172.44,9.46183118]
[1754005790328,4.80588208,172.51,172.43,5.7999]
[1754005790329,5.7984,172.48,172.43,5.7999]
[1754005790525,3.03,172.44,172.43,5.7999]
[1754005791732,3.03,172.45,172.44,5.7994]
[1754005791926,3.03,172.45,172.42,3.66243118]
[1754005792425,3.03,172.47,172.42,3.66243118]
[1754005792625,3.03,172.5,172.46,3.66243118]
[1754005792825,4.07672926,172.49,172.46,3.66243118]
[1754005793034,3.03,172.47,172.46,3.66243118]
[1754005793245,3.03,172.47,172.44,3.66243118]
[1754005793729,3.03,172.46,172.44,3.66243118]
[1754005794536,3.03,172.46,172.45,5.7993]
[1754005797740,3.03,172.46,172.44,9.46203118]
[1754005798236,5.7977,172.5,172.45,5.7991]
[1754005798434,3.06,172.48,172.45,5.7991]
[1754005798630,8.46831326,172.54,172.46,3.66243118]
[1754005798831,5.7974,172.51,172.46,3.66243118]
[1754005799134,4.07444233,172.5,172.46,3.66243118]
[1754005799336,5.7972,172.52,172.47,5.7986]
[1754005799538,3.06,172.5,172.48,3.66243118]
[1754005799737,3.06,172.5,172.49,5.7977]
[1754005800740,3.06,172.52,172.5,5.7974]
[1754005800935,3.06,172.51,172.5,3.66243118]
[1754005801438,3.06,172.49,172.48,3.66243118]
[1754005802140,3.06,172.49,172.44,3.66243118]
[1754005802335,3.06,172.49,172.46,3.66243118]
[1754005802535,3.06,172.47,172.38,11.6032]
[1754005802734,3.66243118,172.53,172.45,3.66243118]
[1754005802735,3.06,172.46,172.45,3.66243118]
[1754005803132,3.06,172.5,172.45,3.66243118]
[1754005803436,3.06,172.48,172.45,3.66243118]
[1754005803638,8.8585,172.48,172.45,3.66243118]
[1754005803838,3.06,172.47,172.45,3.66243118]
[1754005804235,3.06,172.47,172.45,9.46173118]
[1754005804443,3.06,172.46,172.45,9.46173118]
[1754005804637,3.06,172.46,172.45,3.66243118]
[1754005806239,3.06,172.46,172.45,9.46183118]
[1754005808242,3.06,172.46,172.44,5.7996]
[1754005808748,3.06,172.46,172.45,5.7994]
[1754005809548,3.06,172.46,172.44,5.7996]
[1754005809750,3.06,172.46,172.43,3.66243118]
[1754005810245,3.06,172.45,172.44,5.7997]
[1754005811346,3.06,172.46,172.43,3.66243118]
[1754005811544,3.06,172.52,172.45,3.66243118]
[1754005811750,3.06,172.5,172.45,3.66243118]
[1754005812550,3.06,172.49,172.46,5.799]
[1754005813051,3.06,172.49,172.45,9.46173118]
[1754005813345,3.06,172.49,172.43,3.66243118]
[1754005813850,3.06,172.45,172.43,3.66243118]
[1754005814443,3.06,172.44,172.43,3.66243118]
[1754005814949,3.06,172.44,172.43,9.46243118]
[1754005817345,3.66243118,172.52,172.44,5.7996]
[1754005817346,3.06,172.45,172.44,5.7996]
[1754005819456,5.7985,172.48,172.45,5.7993]
[1754005819660,5.7985,172.48,172.45,9.46173118]
[1754005819661,3.06,172.47,172.45,9.46173118]
[1754005819856,3.06,172.46,172.45,9.46173118]
[1754005821661,3.06,172.47,172.45,3.66243118]
[1754005821859,3.06,172.54,172.45,3.66243118]
[1754005822055,3.06,172.52,172.48,3.66243118]
[1754005822257,3.06,172.5,172.48,3.66243118]
[1754005822559,3.06,172.54,172.48,3.66243118]
[1754005822759,4.06819048,172.53,172.49,3.66243118]
[1754005823063,3.06,172.52,172.49,9.46013118]
[1754005823463,3.06,172.52,172.5,5.7976]
[1754005823860,3.66243118,172.55,172.48,3.66243118]
[1754005824063,3.06,172.49,172.45,3.66243118]
[1754005824563,3.06,172.49,172.43,3.66243118]
[1754005825165,3.06,172.46,172.38,3.66243118]
[1754005825563,3.06,172.46,172.43,5.7998]
[1754005826268,3.06,172.45,172.42,5.8003]
[1754005826454,3.06,172.45,172.4,3.66243118]
[1754005827063,3.06,172.45,172.43,5.7998]
[1754005827263,3.06,172.45,172.4,3.66243118]
[1754005827467,3.06,172.45,172.39,3.66243118]
[1754005828460,3.06,172.45,172.41,3.66243118]
[1754005828661,3.06,172.45,172.43,5.7998]
[1754005829362,3.06,172.45,172.42,5.8002]
[1754005829561,3.06,172.45,172.39,3.66243118]
[1754005829861,3.06,172.45,172.37,3.66243118]
[1754005829862,3.33,172.4,172.37,3.66243118]
[1754005830164,3.66243118,172.45,172.37,3.66243118]
[1754005830360,5.8004,172.42,172.39,5.8014]
[1754005830557,3.66243118,172.45,172.37,3.66243118]
[1754005830761,3.33,172.4,172.39,5.8014]
[1754005832170,3.33,172.4,172.38,5.8016]
[1754005833162,3.33,172.39,172.35,3.66243118]
[1754005833366,3.33,172.39,172.33,3.66243118]
[1754005833669,3.33,172.38,172.33,3.66243118]
[1754005833968,3.33,172.38,172.35,5.8025]
[1754005834167,9.1318,172.38,172.33,3.66243118]
[1754005834373,3.33,172.37,172.31,3.66243118]
[1754005834563,6.99243118,172.37,172.28,110.02]
[1754005834771,3.33,172.34,172.28,5.805]
[1754005835068,3.33,172.34,172.25,3.66243118]
[1754005835270,3.66243118,172.35,172.28,5.8048]
[1754005835468,3.33,172.32,172.28,5.8048]
[1754005835868,5.804,172.32,172.25,3.66243118]
[1754005836072,3.33,172.31,172.29,5.8045]
[1754005836972,3.33,172.31,172.27,3.66243118]
[1754005837564,3.33,172.31,172.25,3.66243118]
[1754005837773,6.99243118,172.31,172.23,3.66243118]
[1754005837967,3.33,172.3,172.23,3.66243118]
[1754005839273,3.33,172.27,172.24,5.8064]
[1754005839472,3.33,172.27,172.23,3.66243118]
[1754005840467,3.33,172.25,172.24,5.8064]
[1754005844274,3.33,172.25,172.23,5.8067]
[1754005844672,3.66243118,172.31,172.22,3.66243118]
[1754005844976,9.1346,172.3,172.22,3.66243118]
[1754005845179,3.33,172.3,172.22,3.66243118]
[1754005845676,9.1345,172.3,172.25,5.8058]
[1754005845976,3.33,172.29,172.25,5.8058]
[1754005846472,3.33,172.28,172.25,5.8058]
[1754005846775,3.33,172.28,172.24,5.8063]
[1754005846976,3.33,172.28,172.22,3.66243118]
[1754005849869,3.33,172.28,172.25,5.8061]
[1754005850172,3.33,172.29,172.24,3.66243118]
[1754005850373,3.33,172.29,172.23,3.66243118]
[1754005850766,5.8055,172.27,172.23,3.66243118]
[1754005851070,3.33,172.26,172.23,3.66243118]
[1754005851276,3.33,172.26,172.22,3.66243118]
[1754005851476,3.33,172.25,172.22,9.46923118]
[1754005851874,3.33,172.25,172.22,3.66243118]
[1754005852472,3.33,172.25,172.2,3.66243118]
[1754005852673,3.33,172.25,172.22,3.66243118]
[1754005853074,3.33,172.25,172.23,5.8066]
[1754005854080,3.33,172.25,172.22,3.66243118]
[1754005854081,5.8052,172.28,172.22,3.66243118]
[1754005854273,3.66243118,172.3,172.22,3.66243118]
[1754005854781,3.33,172.29,172.22,3.66243118]
[1754005854981,3.33,172.29,172.24,3.66243118]
[1754005855175,3.33,172.26,172.24,3.66243118]
[1754005855377,3.33,172.26,172.23,5.8066]
[1754005855680,3.33,172.26,172.22,3.66243118]
[1754005855879,3.33,172.24,172.22,3.66243118]
[1754005856584,3.33,172.27,172.22,3.66243118]
[1754005856773,3.33,172.27,172.25,3.66243118]
[1754005856977,3.33,172.3,172.25,3.66243118]
[1754005857179,3.33,172.31,172.27,3.66243118]
[1754005857680,3.33,172.31,172.28,5.8048]
[1754005857882,3.33,172.31,172.26,3.66243118]
[1754005858278,3.07,172.3,172.26,3.66243118]
[1754005858683,3.07,172.3,172.24,3.66243118]
[1754005859384,3.07,172.31,172.28,9.46743118]
[1754005859585,3.07,172.3,172.28,3.66243118]
[1754005859787,3.07,172.29,172.28,3.66243118]
[1754005859979,3.07,172.29,172.28,9.46753118]
[1754005860179,3.07,172.3,172.28,3.66243118]
[1754005860680,3.07,172.38,172.28,3.66243118]
[1754005860986,3.07,172.38,172.37,3.66243118]
[1754005861681,3.07,172.38,172.35,3.66243118]
[1754005862276,3.07,172.38,172.36,5.8022]
[1754005862474,3.07,172.4,172.36,5.8022]
[1754005862782,3.07,172.43,172.35,3.66243118]
[1754005862980,5.8009,172.41,172.36,5.8024]
[1754005863182,3.07,172.4,172.35,3.66243118]
[1754005863883,3.07,172.4,172.35,9.46493118]
[1754005863884,5.8013,172.4,172.35,9.46493118]
[1754005864084,3.07,172.45,172.35,9.46493118]